Cogmind - Beta 16.1 @@@ ROGUE MODE // 2026.04.06 @ 16:26:21 Player: Rainbow Dash Result: Self-destructed Performance ------------- Evolutions (5) 2500 Regions Visited (5) 1000 Robots Destroyed (46) 230 Value Destroyed (920) 920 Prototype IDs (17) 340 Alien Tech Used (0) 0 Bonus (300) 300 TOTAL SCORE: 5290 Bonus ------- Registered with UFD 300 Cogmind --------- Core Integrity 1000/1000 Matter 260/300 Energy 85/100 System Corruption 0% Temperature Cool (0) Movement Rolling (100) Location -5/Factory Parts ------- > --- POWER (2) -------- (None) > --- PROPULSION (6+3) - Arachnoskeleton Armored Huge Wheel > --- UTILITY (7) ------ Drone Bay (0/2) > --- WEAPON (2) ------- Junk Cannon > --- INVENTORY (5) ---- Trap Scanner EMP Blaster Peak State ------------ > --- POWER ------------ (None) > --- PROPULSION ------- Arachnoskeleton Armored Huge Wheel > --- UTILITY ---------- Drone Bay > --- WEAPON ----------- Junk Cannon > --- INVENTORY -------- Trap Scanner EMP Blaster [Rating: 46] Favorites ----------- Power Light Ion Engine Engine Light Ion Engine Propulsion Light Treads Treads Light Treads Leg Arachnoskeleton Wheel Armored Wheel Utility Large Storage Unit Device Seismic Detector Storage Large Storage Unit Protection Light Armor Plating Weapon Improved Light Cannon Energy Gun Subdweller Laser Ballistic Gun Subdweller Machine Gun Ballistic Cannon Improved Light Cannon Launcher EMP Blaster Special Weapon Junk Cannon Impact Weapon Makeshift Hammer Special Melee Weapon Datajack Build | -11 -10 -10 -7 -7 -5 ------- Run | Yrd Mat Sub Rec Scr Fac Slots Evolved 10 | . . . . . 10 Power 1 | . . . . . 1 Propulsion 4 | . . . . . 4 Utility 5 | . . . . . 5 Weapon . | . . . . . . Parts Attached 34 | 7 4 17 2 2 2 Power 4 | 1 . 3 . . . Engine 4 | 1 . 3 . . . Core . | . . . . . . Reactor . | . . . . . . Propulsion 9 | 2 . 5 . 1 1 Treads 5 | 2 . 3 . . . Leg 1 | . . . . . 1 Wheel 3 | . . 2 . 1 . Hover . | . . . . . . Flight . | . . . . . . Utility 9 | 2 2 3 1 . 1 Device 4 | 1 . 2 . . 1 Storage 2 | 1 1 . . . . Processor . | . . . . . . Hackware . | . . . . . . Protection 3 | . 1 1 1 . . Artifact . | . . . . . . Weapon 12 | 2 2 6 1 1 . Energy Gun 1 | . . 1 . . . Energy Cannon . | . . . . . . Ballistic Gun 3 | 2 . . 1 . . Ballistic Cannon 4 | . 2 2 . . . Launcher 1 | . . 1 . . . Special Weapon 1 | . . . . 1 . Impact Weapon 1 | . . 1 . . . Slashing Weapon . | . . . . . . Piercing Weapon . | . . . . . . Special Melee Weapon 1 | . . 1 . . . Unidentified Prototypes 1 | . . . . 1 . Parts Lost 10 | . . 9 1 . . Power 3 | . . 3 . . . Propulsion 2 | . . 2 . . . Utility 2 | . . 2 . . . Weapon 3 | . . 2 1 . . Highest Loss Streak 2 | . . 2 1 . . To Critical Strikes . | . . . . . . Average Backups 11 | 2 9 12 12 10 3 Power . | . 1 . . . . Propulsion 2 | . 1 3 2 1 1 Utility 3 | . 2 3 5 4 1 Weapon 3 | . 3 3 4 2 1 Tool/Special . | . . . . . . Unused Backups 18 | . 2 3 1 11 1 Power 1 | . . . 1 . . Propulsion 4 | . 1 2 . 1 . Utility 9 | . . . . 8 1 Weapon 3 | . 1 1 . 1 . Tool/Special 1 | . . . . 1 . Average Slot Usage (%) 83 | . 99 97 97 39 15 Engine 9 | . 14 11 14 1 . Treads 17 | . 28 24 . . . Wheel 7 | . . 3 28 14 5 Device 7 | . 3 11 10 . 4 Storage 13 | . 14 14 14 12 . Protection 3 | . 10 2 3 1 . Ballistic Cannon 17 | . 27 22 11 . . Special Weapon 1 | . . . . 8 5 Impact Weapon 1 | . . 1 10 . . Special Melee Weapon 1 | . . 3 . . . Peak Build Rating 46 | 7 11 18 20 26 46 Average Rating 14 | 5 9 13 17 18 26 On Entrance 12 | . 7 11 18 16 22 Avg Prop Armor Cover (%) 4 | . . 4 4 . . Naked Turns . | . . . . . . Heaviest Build 36 | 12 34 36 36 34 20 Greatest Support 40 | 40 40 40 32 32 28 Greatest Overweight (x) 6 | . . 2 2 6 . Average Overweight (x) . | . . . 1 . . Largest Inventory Capacity 15 | 8 15 15 15 15 5 Average Capacity 13 | 7 11 15 15 14 5 Most Carried 15 | 3 15 15 15 15 5 Average Carried 12 | 2 9 14 14 13 4 Final Capacity 15 | 8 15 15 15 5 5 Final Carried 15 | 3 15 15 15 5 2 Class Distribution -------------------- 99% | Mutant Dominant Class ---------------- Mutant | -10/Materials Mutant | -10/Subcaves Mutant | -7/Recycling Mutant | -7/Scraptown Mutant | -5/Factory Resources | -11 -10 -10 -7 -7 -5 ----------- Run | Yrd Mat Sub Rec Scr Fac Matter Collected 1850 | 302 402 874 244 28 . Remotely . | . . . . . . Salvage Created 1083 | 173 489 261 160 . . Parts 64 | 12 31 20 1 . . Haulers Intercepted 2 | . 2 . . . . Recyclers Shooed 3 | 1 2 . . . . Parts Field Recycled . | . . . . . . Retrieved Matter . | . . . . . . Parts Self-Destructed 7 | . . 7 . . . Prevented . | . . . . . . Parts Restored . | . . . . . . Kills | -11 -10 -10 -7 -7 -5 ------- Run | Yrd Mat Sub Rec Scr Fac Combat Hostiles Destroyed 29 | . 12 16 1 . . Guns 1 | . . . 1 . . Cannons 24 | . 12 12 . . . AOE 4 | . . 4 . . . Classes Destroyed 10 | 2 5 2 1 . . Worker 2 | . 2 . . . . Tunneler 3 | 3 . . . . . Hauler 2 | . 2 . . . . Recycler 6 | 1 3 . 2 . . Turret 1 | . . 1 . . . Watcher 3 | . 3 . . . . Swarmer 13 | . 9 4 . . . Grunt 3 | . 3 . . . . Sentry 1 | . . . 1 . . Subdweller 12 | . . 12 . . . Best Kill Streak 6 | 4 6 5 1 . . Combat Bots Only 6 | . 6 4 1 . . Max Kills in Single Turn 3 | 1 2 3 1 . . Gunslinging . | . . . . . . Exploded 3 | . . 3 . . . Melee . | . . . . . . Uniques/NPCs Destroyed . | . . . . . . Combat | -11 -10 -10 -7 -7 -5 -------- Run | Yrd Mat Sub Rec Scr Fac Hostile Shots Fired 260 | . 43 145 72 . . Missed 85 | . 13 55 17 . . Hits 175 | . 30 90 55 . . Projectile 175 | . 30 90 55 . . Critical Strikes 2 | . . 2 . . . Damage Taken 2078 | . 270 1391 417 . . Core 247 | . . 139 108 . . Absorbed by Shields . | . . . . . . Regen/Repaired (Parts) 139 | . 139 . . . . Core Remaining (%) 50 | 100 . . . 1 . Volleys Fired 137 | 8 37 83 9 . . Largest 2 | 2 2 2 2 . . Hottest 66 | 40 66 66 63 . . Shots Fired 254 | 16 74 150 14 . . Gun 21 | 16 . . 5 . . Cannon 230 | . 74 147 9 . . Launcher 3 | . . 3 . . . Special . | . . . . . . Kinetic 251 | 16 74 147 14 . . Thermal . | . . . . . . Explosive . | . . . . . . Electromagnetic 3 | . . 3 . . . Robot Hit Streak 21 | 7 5 21 11 . . Robot Miss Streak 3 | 2 3 3 1 . . Penetration Max . | . . . . . . Secondary Targets . | . . . . . . Shots Hit Robots 164 | 9 44 96 15 . . Core Hits 62 | 5 23 30 4 . . Critical Kills . | . . . . . . Critical Parts Destroyed . | . . . . . . Critical Strikes 8 | . 3 5 . . . Blast 8 | . 3 5 . . . Melee Attacks 10 | . . 8 2 . . Impact 9 | . . 7 2 . . Slashing . | . . . . . . Piercing . | . . . . . . Sneak Attacks 3 | . . 1 2 . . Combat Hostiles . | . . . . . . Follow-up Attacks . | . . . . . . Damage Inflicted 3604 | 96 993 2024 491 . . Guns 199 | 96 . . 103 . . Cannons 3068 | . 993 1902 173 . . Explosions 122 | . . 122 . . . Melee 215 | . . . 215 . . Ramming . | . . . . . . Kinetic 3267 | 96 993 1902 276 . . Thermal 33 | . . 33 . . . Explosive . | . . . . . . Electromagnetic 89 | . . 89 . . . Impact 215 | . . . 215 . . Slashing . | . . . . . . Piercing . | . . . . . . Highest Corruption . | . . . . . . Average Corruption . | . . . . . . Corruption Purged . | . . . . . . Corruption Blocked . | . . . . . . Overload Shots . | . . . . . . Overflow Damage 188 | . 26 7 155 . . Projectiles 33 | . 26 7 . . . Explosions . | . . . . . . Melee 155 | . . . 155 . . Knockbacks 26 | . 6 19 1 . . Impact . | . . . . . . Kinetic 26 | . 6 19 1 . . Secondary . | . . . . . . Self-Inflicted Damage . | . . . . . . Shots . | . . . . . . Rammed 1 | . 1 . . . . Targets Rammed 1 | . 1 . . . . Kicked . | . . . . . . Crushed . | . . . . . . Highest Temperature 120 | . 120 9 38 . . Average Temperature 31 | . 32 6 21 . . Received Heat Transfer 375 | . 45 210 120 . . Siege Activations . | . . . . . . Martial Activations . | . . . . . . Shielding Activations . | . . . . . . Robots Disrupted . | . . . . . . Combat Hostiles . | . . . . . . Robots Corrupted 1 | . . . 1 . . Combat Hostiles . | . . . . . . Parts Fried 3 | . . . 3 . . Impact Corruptions 3 | . . . 3 . . Robots Melted . | . . . . . . Combat Hostiles . | . . . . . . Parts Melted . | . . . . . . Heat Transferred 50 | . . 50 . . . Parts Sabotaged . | . . . . . . Parts Stolen . | . . . . . . Parts Stripped . | . . . . . . Power Chain Reactions 1 | . . 1 . . . Alert | -11 -10 -10 -7 -7 -5 ------- Run | Yrd Mat Sub Rec Scr Fac Maximum Alert Level . | . . . . . . Low Security (%) 100 | 100 100 . 100 . 100 Level 1 . | . . . . . . Level 2 . | . . . . . . Level 3 . | . . . . . . Level 4 . | . . . . . . Level 5 . | . . . . . . High Security . | . . . . . . Max Security . | . . . . . . Peak Influence 126 | 10 126 . 28 . . Initial . | . . . . . . Average 22 | 1 35 . 3 . . Influence Increases 686 | 20 392 160 114 . . Destroy 0b10 Robot/C 360 | . 240 100 20 . . Destroy 0b10 Robot/NC 80 | 20 50 . 10 . . Destroy Leader 60 | . 60 . . . . Successful Hack 105 | . 36 . 69 . . Destroy Structure 6 | . 6 . . . . Lose Combat Pursuer 75 | . . 60 15 . . Influence Decreases 686 | 20 392 160 114 . . Time Decay 656 | 20 382 150 104 . . Lost Part 20 | . . 10 10 . . Lost Ally 10 | . 10 . . . . Squads Dispatched 4 | . 1 . . . 3 Investigation . | . . . . . . Extermination . | . . . . . . Reinforcement 4 | . 1 . . . 3 Assault . | . . . . . . Garrison . | . . . . . . Intercept . | . . . . . . Searches Triggered . | . . . . . . Construction Impeded . | . . . . . . Haulers Reinforced . | . . . . . . Active Scanning Responses . | . . . . . . Cargo Convoy Interrupts . | . . . . . . Stealth | -11 -10 -10 -7 -7 -5 --------- Run | Yrd Mat Sub Rec Scr Fac Distress Signals 2 | . 2 . . . . Communications Jammed . | . . . . . . Distress Signals . | . . . . . . Times Spotted 47 | . 22 22 3 . . Peak Tracking Total 6 | . 5 6 1 . . Tactical Retreats 4 | . . 3 1 . . Traps | -11 -10 -10 -7 -7 -5 ------- Run | Yrd Mat Sub Rec Scr Fac Traps Triggered . | . . . . . . Indirectly . | . . . . . . Trap Hack Attempts 10 | . . 10 . . . Triggered . | . . . . . . Disarmed 5 | . 5 . . . . Reprogrammed 2 | . . 2 . . . Reused 2 | . . 2 . . . Traps Extracted 3 | . . 3 . . . Installed 3 | . . 3 . . . Triggered . | . . . . . . Most Traps Carried 4 | . . 4 2 . . Machines | -11 -10 -10 -7 -7 -5 ---------- Run | Yrd Mat Sub Rec Scr Fac Machines Disabled 3 | . . 3 . . . Max in Single Turn 1 | . . 1 . . . Machines Repaired . | . . . . . . Machines Dismantled . | . . . . . . Machines Sabotaged . | . . . . . . Overloaded Fab Kills . | . . . . . . Hacking | -11 -10 -10 -7 -7 -5 --------- Run | Yrd Mat Sub Rec Scr Fac Machines Accessed 19 | . 10 2 6 1 . Terminals 11 | . 7 . 4 . . Fabricators . | . . . . . . Repair Stations 1 | . 1 . . . . Recycling Units 4 | . 2 . 2 . . Scanalyzers . | . . . . . . Garrison Access . | . . . . . . Total Hacks 61 | . 39 4 12 6 . Successful 38 | . 23 4 5 6 . Failed 23 | . 16 . 7 . . Catastrophic 2 | . . . 2 . . Database Lockouts . | . . . . . . Manual 31 | . 26 . 5 . . Terminals 39 | . 30 . 9 . . Fabricators . | . . . . . . Repair Stations 4 | . 4 . . . . Recycling Units 8 | . 5 . 3 . . Scanalyzers . | . . . . . . Garrison Access . | . . . . . . Terminal Hacks 19 | . 7 4 2 6 . Record 3 | . . 3 . . . Part Schematic 1 | . . . 1 . . Robot Analysis 6 | . . . . 6 . Prototype ID Bank 2 | . 2 . . . . Terminal Index 2 | . 1 . 1 . . Locate Traps 2 | . 2 . . . . Disarm Traps 1 | . 1 . . . . Hauler Manifests 1 | . 1 . . . . Proto ID Catalog 1 | . . 1 . . . Fabricator Hacks . | . . . . . . Repair Station Hacks 4 | . 4 . . . . Scan Component 2 | . 2 . . . . Repair 2 | . 2 . . . . Recycling Unit Hacks 2 | . 1 . 1 . . Retrieve Components 2 | . 1 . 1 . . Scanalyzer . | . . . . . . Garrison Access Hacks . | . . . . . . Unauthorized Hacks 13 | . 11 . 2 . . Terminals 10 | . 8 . 2 . . Track 1 | . 1 . . . . Assimilate 1 | . 1 . . . . Botnet 1 | . 1 . . . . Skim 7 | . 5 . 2 . . Fabricators . | . . . . . . Repair Stations . | . . . . . . Recycling Units 3 | . 3 . . . . Reject 1 | . 1 . . . . Recyclers 1 | . 1 . . . . Mask 1 | . 1 . . . . Scanalyzers . | . . . . . . Garrison Access . | . . . . . . Data Cores Recovered . | . . . . . . Used . | . . . . . . Hacking Detections 14 | . 9 . 5 . . Full Trace Events 1 | . . . 1 . . Feedback Events . | . . . . . . Feedback Blocked . | . . . . . . Robot Schematics Acquired . | . . . . . . Robots Built . | . . . . . . Authchips . | . . . . . . Time . | . . . . . . Total Robot Build Rating . | . . . . . . Part Schematics Acquired 1 | . . . 1 . . Parts Built . | . . . . . . Authchips . | . . . . . . Time . | . . . . . . Total Part Build Rating . | . . . . . . Part Studies Acquired . | . . . . . . Parts Repaired 2 | . 2 . . . . Time 58 | . 58 . . . . Parts Recycled . | . . . . . . Recycled Matter . | . . . . . . Retrieved Matter . | . . . . . . Retrieved Components 12 | . 10 . 2 . . Parts Scanalyzed . | . . . . . . Part Schematics Acquired . | . . . . . . Parts Damaged . | . . . . . . Bothacking | -11 -10 -10 -7 -7 -5 ------------ Run | Yrd Mat Sub Rec Scr Fac Used RIF Installer . | . . . . . . Robots Hacked 1 | . . 1 . . . Non-combat 1 | . . 1 . . . Combat . | . . . . . . Robot Hacks Applied 1 | . . 1 . . . parse_system 1 | . . 1 . . . Relay Couplers Released . | . . . . . . Fabnet Peak Effective % . | . . . . . . Robots Rewired . | . . . . . . Allies Hacked . | . . . . . . Hacks Repelled . | . . . . . . Allies | -11 -10 -10 -7 -7 -5 -------- Run | Yrd Mat Sub Rec Scr Fac Total Allies 1 | . 1 . . . . Largest Group 1 | . 1 . . . . Highest-Rated Group 10 | . 10 . . . . Highest-Rated Ally 10 | . 10 . . . . Initial UFD Resources 37 | . . . . . 37 Total Orders 3 | . . . . . 3 EXPLORE 2 | . . . . . 2 RETURN 1 | . . . . . 1 Ally Attacks . | . . . . . . Total Damage . | . . . . . . Kills . | . . . . . . Allies Corrupted . | . . . . . . Allies Melted . | . . . . . . Intel | -11 -10 -10 -7 -7 -5 ------- Run | Yrd Mat Sub Rec Scr Fac Active Infowar (turns) 3651 | 26 383 2774 468 . . Optics 114 | . . 114 . . . Seismic 3537 | 26 383 2660 468 . . Robot Analysis Total 6 | . . . . 6 . Derelict Logs Recovered 7 | . . 2 . 5 . Drone Launches 3 | . . . . . 3 Drone Recoveries 1 | . . . . . 1 Exploration | -11 -10 -10 -7 -7 -5 ------------- Run | Yrd Mat Sub Rec Scr Fac Turns Passed 7553 | 113 1615 3520 620 1404 281 Spaces Moved 4789 | 50 877 2041 498 1279 44 Core 5 | 2 . . . 3 . Treads 2643 | 48 877 1718 . . . Legs . | . . . . . . Wheels 2141 | . . 323 498 1276 44 Hover . | . . . . . . Flight . | . . . . . . Fastest Speed 50 | 50 160 120 100 100 100 Average Speed 138 | 155 160 153 115 108 100 Slowest Speed 350 | 160 160 160 120 350 100 Overloaded Moves . | . . . . . . Propulsion Burnouts . | . . . . . . Robots Hopped . | . . . . . . Potential Cave-ins . | . . . . . . Cave-ins Triggered . | . . . . . . Exploration Rate (%) 61 | 4 99 84 85 79 18 Regions Visited 5 Branch Regions 3 Pre-discovered Areas 3 | . . 1 . 2 . Known Exits Taken 1 | . . 1 . . . Unknown Exits Taken 4 | 1 1 . 1 1 . Scrap Searched 15 | . . 13 . 2 . Spaces Dug 4 | . . 4 . . . Terrain Destroyed 8 | . 3 5 . . . Melee 1 | . . 1 . . . Projectile 5 | . 3 2 . . . AOE 2 | . . 2 . . . Terrain Rammed . | . . . . . . Walls Destroyed . | . . . . . . Machines Disabled . | . . . . . . Actions | -11 -10 -10 -7 -7 -5 --------- Run | Yrd Mat Sub Rec Scr Fac Total 5443 | 67 1015 2252 525 1304 280 Wait 355 | . 70 38 11 2 234 Move 4784 | 49 876 2040 497 1278 44 Hop . | . . . . . . Pick Up 41 | 3 17 12 2 7 . Fast Attach 14 | 7 2 2 . 2 1 Attach 11 | . . 10 . . 1 Detach 2 | . . . . 2 . Swap 46 | . 6 38 2 . . Drop 29 | . 6 8 2 13 . Fire 137 | 8 37 83 9 . . Melee 10 | . . 8 2 . . Ram . | . . . . . . Kick . | . . . . . . Crush 1 | . 1 . . . . Escape Stasis . | . . . . . . Rewire . | . . . . . . Trap 13 | . . 13 . . . Miscellaneous . | . . . . . . Route ------- -11/Scrapyard -10/Materials (discovered 6 exits: [*Mat x3] / [*Min x2] / *Sub) -10/Subcaves (discovered 3 exits: *Mat x2 / *Rec) -7/Recycling (discovered 2 exits: [*Fac] / *Scr) -7/Scraptown (discovered 2 exits: [*Fac x2]) -5/Factory (discovered 2 exits: [*Fac] / [*Upp]) History --------- Turn | Location | Event 24 | -11/Scrapyard | Discovered new exit (range 16) 114 | -11/Scrapyard | Entered Materials 254 | -10/Materials | Discovered new exit (range 10) 313 | -10/Materials | Build established: Mutant 556 | -10/Materials | Discovered new exit (range 15) 727 | -10/Materials | Discovered new exit (range 5) 783 | -10/Materials | Discovered new exit (range 8) 830 | -10/Materials | Discovered new exit (range 12) 976 | -10/Materials | Discovered new exit (range 16) 1311 | -10/Materials | Loaded intel: 2 recycling unit locations 1346 | -10/Materials | Learned location of 2 exits from Subcaves 1372 | -10/Materials | Learned Storage stockpile data 1390 | -10/Materials | Learned 4 Subcaves zone layouts 1396 | -10/Materials | Learned Storage trap positions 1422 | -10/Materials | Repaired Lgt. Armor Plating 1438 | -10/Materials | Learned Storage trap positions 1456 | -10/Materials | Repaired Imp. Light Cannon 1729 | -10/Materials | Entered Subcaves 1730 | -10/Subcaves | Approached by a straggling Scientist 1730 | -10/Subcaves | Identified exit to Materials 1730 | -10/Subcaves | Identified exit to Recycling 1887 | -10/Subcaves | Visited 4L-MR0's lab 1916 | -10/Subcaves | Found Arachnoskeleton 2392 | -10/Subcaves | Disturbed a concealed Subdweller 2497 | -10/Subcaves | A swath of the cavern ceiling suddenly collapsed 3105 | -10/Subcaves | Visited Clippyterm 3110 | -10/Subcaves | Learned Research security intel 3651 | -10/Subcaves | Disturbed a concealed Subdweller 4072 | -10/Subcaves | Shifting Twisted Machinery released Piercing Trap 4075 | -10/Subcaves | Shifting Twisted Machinery released Piercing Trap 4506 | -10/Subcaves | A swath of the cavern ceiling suddenly collapsed 4863 | -10/Subcaves | Core integrity fell below 50% 5249 | -10/Subcaves | Entered Recycling 5505 | -7/Recycling | Discovered new exit (range 8) 5732 | -7/Recycling | Core integrity fell below 20% 5846 | -7/Recycling | Scanned before Scraplab entrance 5860 | -7/Recycling | Entered Scraplab 5868 | -7/Recycling | Discovered new exit (range 2) 5869 | -7/Recycling | Entered Scraptown 5952 | -7/Scraptown | Scanned Subdweller tech in exchange for log data 5955 | -7/Scraptown | Learned Research stockpile data 5956 | -7/Scraptown | Learned location of Testing (-3) 5957 | -7/Scraptown | Learned location of Extension (-4) 5958 | -7/Scraptown | Learned Research security intel 5985 | -7/Scraptown | Discovered new exit (range 11) 6047 | -7/Scraptown | Heard Great Nut preacher, LISTEN AND RECITE! 6289 | -7/Scraptown | Visited UFD Registry 6289 | -7/Scraptown | Registered with UFD as "Fibernuts" 6310 | -7/Scraptown | Visited TADAMA 6319 | -7/Scraptown | Visited IN-MT5's Study 6339 | -7/Scraptown | Visited Supply Room 6354 | -7/Scraptown | Visited Cave Peace 6366 | -7/Scraptown | Visited SPCMW 6383 | -7/Scraptown | Visited Spacefarers 6398 | -7/Scraptown | Visited Assassins FH 6442 | -7/Scraptown | Visited Junk Cannon Lab 6456 | -7/Scraptown | Found Prototype Special Weapon 6456 | -7/Scraptown | Identified Junk Cannon 6481 | -7/Scraptown | Visited Derelict Rescue Squad 6502 | -7/Scraptown | Visited Research Penetration Think Tank 6535 | -7/Scraptown | Visited Science Testing Area 6577 | -7/Scraptown | Visited Analyses Database 6604 | -7/Scraptown | Visited Junk Repository 6665 | -7/Scraptown | Visited Cartography Club 6686 | -7/Scraptown | Visited Botcube Research 6709 | -7/Scraptown | Visited Chapter 10 6731 | -7/Scraptown | Visited Modified Component R&D 7098 | -7/Scraptown | Discovered new exit (range 3) 7273 | -7/Scraptown | Entered Factory 7273 | -5/Factory | Evolved 10 slots: Power x1, Propulsion x4, Utility x5 7456 | -5/Factory | Discovered new exit (range 34) 7457 | -5/Factory | Discovered new exit (range 44) 7554 | -5/Factory | Attached Arachnoskeleton, gained temporary slots: Propulsion x3 7554 | -5/Factory | Self-destructed Last Messages --------------- 07391_ K-01 Serf latches onto Y-64 Sentinel. 07391_ K-01 Serf pushes Y-64 Sentinel. 07403_ K-01 Serf pushes G-50 Soldier. 07433_ Drone released from Drone Bay. 07435_ O-24 Administrator: "IFF HANDSHAKE FAILED. SECURING TERMINAL." 07438_ ALERT: Hostiles spotted, dispatching reinforcements to Terminal F006. 07440_ ALERT: Hostiles spotted, dispatching reinforcements to Terminal F005. 07446_ Drone destroyed. 07456_ EXIT=FOUND 07456_ O-16 Technician: "IFF HANDSHAKE FAILED. SECURING TERMINAL." 07457_ EXIT=FOUND 07467_ K-01 Serf collects debris. 07469_ ALERT: Hostiles spotted, dispatching reinforcements to Terminal F010. 07483_ K-01 Serf cleans the Fusion Modulator. 07491_ K-01 Serf cleans the Power Conduit. 07553_ Slug penetrates Wall. 07554_ Core temporarily expanded with Propulsion slot. Map ----- +----------------------------------------------------+ | ????# #??????????????????????????????????? | | ????# """ "" #??????????????????????????????????? | | ????# """ """ #??????????????????????????????????? | | ????# """ T" #??????????????????????????????????? | | ????# """ #??????????????????????????????????? | | ????# "" #??????????????????????????????????? | | ????# #??????????????????????????????????? | | ????# #??????????????????????????????????? | | ????##+#####+##??????????????????????????????????? | | #???# #?????????????????????????????????????????? | | #???# #?????????????????????????????????????????? | | ##### ##### ##??????????????????????????????????? | | #?????????????????????????????? | | ###################??????????????????????? | | #????# #??????????????????????? | | ###### """ """ ####################???? | | + "Y ! """ ## + #???? | | """ ###### """ """ ## # #???? | | """ #????# ## # """""" #???? | | """ ##???# """ """ ## + """""" #???? | | #???# """ """ ## #### """""" #???? | | """ #???# """ """ ## #??# """""" #???? | | """ #???# ## #??# #???? | | """ #???# ## #??# """""" #???? | | #???# ## #??# """""" #???? | | #???# @## #??# """""" #???? | | #### ###########+####### #??# """""" #???? | | # ##### #??# = #???? | | "" + #??#######+########## | | "" # #######?????# | | "" # ###########?# | | "" # # #?# """ | | ############### # #?# """ | | #???# # # #?# """ | | #???# """" # # #?# "" ## | | #???# ""R"" + + #?# """ """#? | | #???# "" "" # # #?# """ F"#? | | ####???# # # #?# """ """## | | ???????# # # #?# "" # | | ???????# # ###########?# # | | #####??# # #???????????# # | | #??########### #???????????######## # | | ### #????????????# #??????????????????# # | | ?????????????????# #??????????????????# # | | ?????????????????# #??????????????????# / | | ?????????????????# #??????????????????# # | | ?????????????????#### ##??????????????????# # | | ????????????????????# #???????????????????# # | | ????????????????????# #???????????????????# ^ # | | ????????????????????# #???????????????????# # | +----------------------------------------------------+ Best States ------------- Heat Dissipation 40 Energy Generation 10 Energy Capacity 200 Matter Stores 300 Matter Capacity 300 Sight Range 21 Terrain Scan Density 10 Armor Coverage 150 Evasion (%) 40 Recoil Reduction 2 Trap Extractor Capacity 4 Item Schematics ----------------- Imp. Transmission Jammer | -7/Recycling | Hacked Robot Schematics ------------------ None Fabricated ------------ Nothing Repaired ---------- Lgt. Armor Plating | 33% | -10/Materials Imp. Light Cannon | 41% | -10/Materials Studied --------- None Alien Tech Used ----------------- None Achievements -------------- Low-level Research Challenges ------------ None Game ------ Seed CarbideSupercompositeFlamer Manual? 0 Play Time 00:58:01 Cumulative 164.3 hours Start 2026.04.06 @ 14:52:22 End 2026.04.06 @ 16:26:21 Sessions 2 Manual Loads 0 Difficulty Rogue Special Mode None Game No. 144 Rogue 99 Adventurer 45 Explorer 0 Win Type - Total 3 Types 2/0/0/1/0/0/0/0/0/0 Lore% 76 Gallery% 61 Achievement% 44 Wizard Run 0 Options --------- Layout 0 ASCII 1 Keyboard 1 Movement Numpad Keybinds 0 Fullscreen 1 Font 24/Smallcaps Map View 76x50 Zoom Use 0% Tactical HUD 1 Map Filters NONE Filters NONE Steam 1 RUN: 443153dd-58fd-4727-9234-75a5a8e7fee3